[Event "Live Chess"]
[Site "Chess.com"]
[Date "2024.06.01"]
[Round "-"]
[White "NAZRIZ1977"]
[Black "CCGoodKnightRookie"]
[Result "0-1"]
[WhiteElo "2163"]
[BlackElo "2350"]
[TimeControl "300"]
[EndTime "15:27:37 PDT"]
[Termination "CCGoodKnightRookie won by resignation"]

1. d4 {[%clk 0:04:53.6]} 1... Nf6 {[%clk 0:04:58.5]} 2. Nc3 {[%clk 0:04:52.6]}
2... e6 {[%clk 0:04:58]} 3. Bf4 {[%clk 0:04:51.5]} 3... c5 {[%clk 0:04:54.2]} 4.
e3 {[%clk 0:04:49.9]} 4... a6 {[%clk 0:04:50.3]} 5. d5 {[%clk 0:04:47.4]} 5...
b5 {[%clk 0:04:44.7]} 6. dxe6 {[%clk 0:04:34.5]} 6... fxe6 {[%clk 0:04:43.4]} 7.
Nf3 {[%clk 0:04:26.8]} 7... Qa5 {[%clk 0:04:34.3]} 8. Qd2 {[%clk 0:04:13.9]}
8... Nc6 {[%clk 0:04:28.7]} 9. Be2 {[%clk 0:04:09.4]} 9... Bb7 {[%clk 0:04:23]}
10. O-O {[%clk 0:04:07.9]} 10... Be7 {[%clk 0:04:09.6]} 11. Ne5 {[%clk
0:04:01.8]} 11... Nxe5 {[%clk 0:04:07]} 12. Bxe5 {[%clk 0:04:00.4]} 12... O-O
{[%clk 0:03:55]} 13. Ne4 {[%clk 0:03:54.7]} 13... Qxd2 {[%clk 0:03:45]} 14. Nxd2
{[%clk 0:03:53.4]} 14... Ne4 {[%clk 0:03:40.2]} 15. Nxe4 {[%clk 0:03:23.7]}
15... Bxe4 {[%clk 0:03:38.1]} 16. c3 {[%clk 0:03:17.5]} 16... Rf5 {[%clk
0:03:19.3]} 17. Bg3 {[%clk 0:03:15.3]} 17... Rd5 {[%clk 0:03:18.2]} 18. Rfd1
{[%clk 0:03:12.5]} 18... Rxd1+ {[%clk 0:03:15.9]} 19. Rxd1 {[%clk 0:03:10.9]}
19... Bd5 {[%clk 0:03:15]} 20. e4 {[%clk 0:03:02.5]} 20... Bc6 {[%clk
0:03:09.3]} 21. f3 {[%clk 0:02:49.5]} 21... a5 {[%clk 0:02:58.1]} 22. Bd6 {[%clk
0:02:43.6]} 22... Bxd6 {[%clk 0:02:56]} 23. Rxd6 {[%clk 0:02:43.5]} 23... b4
{[%clk 0:02:55.6]} 24. Bc4 {[%clk 0:02:37.4]} 24... Kf7 {[%clk 0:02:45.3]} 25.
Bxe6+ {[%clk 0:02:34.9]} 25... Ke7 {[%clk 0:02:44]} 0-1

[Event "Live Chess"]
[Site "Chess.com"]
[Date "2024.06.01"]
[Round "-"]
[White "StoreySniper"]
[Black "RichardABates"]
[Result "0-1"]
[WhiteElo "2534"]
[BlackElo "2296"]
[TimeControl "300"]
[EndTime "15:27:59 PDT"]
[Termination "RichardABates won by resignation"]

1. e4 {[%clk 0:04:56.5]} 1... c5 {[%clk 0:04:58.5]} 2. Nf3 {[%clk 0:04:55]} 2...
d6 {[%clk 0:04:57.2]} 3. d4 {[%clk 0:04:54.4]} 3... cxd4 {[%clk 0:04:55]} 4.
Nxd4 {[%clk 0:04:54.3]} 4... Nf6 {[%clk 0:04:54]} 5. f3 {[%clk 0:04:53.7]} 5...
e5 {[%clk 0:04:47.2]} 6. Nb3 {[%clk 0:04:52.4]} 6... Be7 {[%clk 0:04:45.8]} 7.
c4 {[%clk 0:04:50.7]} 7... O-O {[%clk 0:04:44.5]} 8. Nc3 {[%clk 0:04:49.9]} 8...
Be6 {[%clk 0:04:42.3]} 9. Be3 {[%clk 0:04:48.7]} 9... Nbd7 {[%clk 0:04:40.8]}
10. Qd2 {[%clk 0:04:44.7]} 10... a6 {[%clk 0:04:39.2]} 11. Be2 {[%clk 0:04:42]}
11... Rc8 {[%clk 0:04:28]} 12. Nd5 {[%clk 0:04:35.4]} 12... Bxd5 {[%clk
0:04:26.4]} 13. cxd5 {[%clk 0:04:34.5]} 13... Nb6 {[%clk 0:04:11.6]} 14. Qb4
{[%clk 0:04:21.5]} 14... Nfd7 {[%clk 0:04:08.7]} 15. Na5 {[%clk 0:04:11.4]}
15... Rc2 {[%clk 0:03:51.9]} 16. Rc1 {[%clk 0:03:39.5]} 16... Rxc1+ {[%clk
0:03:25.8]} 17. Bxc1 {[%clk 0:03:37.1]} 17... Qc7 {[%clk 0:03:24.8]} 18. Be3
{[%clk 0:03:24.8]} 18... Nc5 {[%clk 0:03:00.2]} 19. O-O {[%clk 0:03:04.1]} 19...
Kh8 {[%clk 0:02:46.4]} 20. Rc1 {[%clk 0:02:49.3]} 20... f5 {[%clk 0:02:43.8]}
21. Nc4 {[%clk 0:02:24.3]} 21... Nxc4 {[%clk 0:02:38]} 22. Rxc4 {[%clk
0:02:17.7]} 22... fxe4 {[%clk 0:02:35.2]} 23. fxe4 {[%clk 0:02:16.1]} 23... b5
{[%clk 0:02:29.4]} 24. Rc1 {[%clk 0:02:11.3]} 24... Qb6 {[%clk 0:02:10.4]} 25.
Qe1 {[%clk 0:01:50.1]} 25... Bg5 {[%clk 0:01:56.9]} 26. Qg3 {[%clk 0:01:28.2]}
26... Nxe4 {[%clk 0:01:49.5]} 27. Bxb6 {[%clk 0:01:20.5]} 27... Nxg3 {[%clk
0:01:47.9]} 28. Rc2 {[%clk 0:01:16.8]} 28... Nxe2+ {[%clk 0:01:44.4]} 29. Rxe2
{[%clk 0:01:15.9]} 29... Rc8 {[%clk 0:01:41]} 30. g3 {[%clk 0:01:08.6]} 30...
Kg8 {[%clk 0:01:38.4]} 31. Ba5 {[%clk 0:01:01.3]} 31... Rc1+ {[%clk 0:01:33.2]}
32. Kg2 {[%clk 0:01:00]} 32... Rd1 {[%clk 0:01:32.2]} 33. Rc2 {[%clk 0:00:53]}
33... Rxd5 {[%clk 0:01:30.7]} 34. Rc6 {[%clk 0:00:51.5]} 34... Bd2 {[%clk
0:01:26.3]} 35. Bc7 {[%clk 0:00:48.4]} 35... Rc5 {[%clk 0:01:16.8]} 36. Rxc5
{[%clk 0:00:44.8]} 36... dxc5 {[%clk 0:01:15.2]} 37. Bxe5 {[%clk 0:00:44.3]}
37... Kf7 {[%clk 0:01:13.9]} 38. Kf3 {[%clk 0:00:43.7]} 38... g6 {[%clk
0:01:12.2]} 39. Ke4 {[%clk 0:00:42.9]} 39... Ke6 {[%clk 0:01:10.9]} 40. g4
{[%clk 0:00:40.1]} 40... Bg5 {[%clk 0:01:08]} 41. h3 {[%clk 0:00:39.2]} 41...
Bf6 {[%clk 0:01:06.6]} 42. Bxf6 {[%clk 0:00:36.8]} 42... Kxf6 {[%clk 0:01:05.4]}
43. Kd5 {[%clk 0:00:36.4]} 43... c4 {[%clk 0:01:04.5]} 44. a4 {[%clk 0:00:34.4]}
44... bxa4 {[%clk 0:00:55.7]} 45. Kxc4 {[%clk 0:00:30.6]} 45... Kg5 {[%clk
0:00:54.3]} 46. Kb4 {[%clk 0:00:18.7]} 46... Kh4 {[%clk 0:00:53]} 47. Kxa4
{[%clk 0:00:18.4]} 47... Kxh3 {[%clk 0:00:51.9]} 48. Ka5 {[%clk 0:00:18]} 48...
Kxg4 {[%clk 0:00:45.9]} 49. Kxa6 {[%clk 0:00:16.8]} 49... h5 {[%clk 0:00:44.7]}
50. b4 {[%clk 0:00:16.4]} 50... h4 {[%clk 0:00:43.9]} 51. b5 {[%clk 0:00:16.3]}
51... h3 {[%clk 0:00:42.9]} 52. b6 {[%clk 0:00:16.2]} 52... h2 {[%clk
0:00:41.9]} 53. b7 {[%clk 0:00:16.1]} 53... h1=Q {[%clk 0:00:39.6]} 54. b8=Q
{[%clk 0:00:16]} 54... Qa1+ {[%clk 0:00:38.2]} 0-1

[Event "Live Chess"]
[Site "Chess.com"]
[Date "2024.06.01"]
[Round "-"]
[White "Ferrarifan27"]
[Black "CheckThis4"]
[Result "0-1"]
[WhiteElo "2114"]
[BlackElo "2686"]
[TimeControl "300"]
[EndTime "15:28:01 PDT"]
[Termination "CheckThis4 won on time"]

1. e4 {[%clk 0:04:50.5]} 1... c5 {[%clk 0:04:53.3]} 2. Nf3 {[%clk 0:04:48.9]}
2... Nc6 {[%clk 0:04:49.9]} 3. b4 {[%clk 0:04:46.7]} 3... cxb4 {[%clk
0:04:43.3]} 4. d4 {[%clk 0:04:45.4]} 4... d5 {[%clk 0:04:41]} 5. exd5 {[%clk
0:04:44.1]} 5... Qxd5 {[%clk 0:04:40.2]} 6. c4 {[%clk 0:04:43.4]} 6... bxc3
{[%clk 0:04:37.1]} 7. Nxc3 {[%clk 0:04:42.1]} 7... Qa5 {[%clk 0:04:23.8]} 8. Rb1
{[%clk 0:04:40.2]} 8... e6 {[%clk 0:04:09.7]} 9. Bd2 {[%clk 0:04:37.7]} 9... Bb4
{[%clk 0:04:05.2]} 10. Qb3 {[%clk 0:04:31.7]} 10... Nge7 {[%clk 0:03:58.8]} 11.
Bd3 {[%clk 0:04:28.3]} 11... O-O {[%clk 0:03:55.1]} 12. O-O {[%clk 0:04:22.7]}
12... b6 {[%clk 0:03:44.6]} 13. Rfe1 {[%clk 0:03:59.5]} 13... Ba6 {[%clk
0:03:39.9]} 14. Bxa6 {[%clk 0:03:45.5]} 14... Qxa6 {[%clk 0:03:38.4]} 15. Re4
{[%clk 0:03:23.8]} 15... Rac8 {[%clk 0:03:34.2]} 16. Rg4 {[%clk 0:03:20.4]}
16... Nf5 {[%clk 0:03:19.1]} 17. d5 {[%clk 0:03:00.7]} 17... exd5 {[%clk
0:02:44.3]} 18. Rxb4 {[%clk 0:02:55.4]} 18... Nxb4 {[%clk 0:02:38.6]} 19. Qxb4
{[%clk 0:02:55.3]} 19... Qd3 {[%clk 0:02:27.5]} 20. Qb5 {[%clk 0:02:23.6]} 20...
Rxc3 {[%clk 0:02:16.2]} 21. Bxc3 {[%clk 0:02:22.5]} 21... Qxc3 {[%clk
0:02:15.8]} 22. Qxd5 {[%clk 0:02:21.2]} 22... g6 {[%clk 0:02:07.7]} 23. h3
{[%clk 0:02:13.4]} 23... Rc8 {[%clk 0:01:48.5]} 24. Rd1 {[%clk 0:01:48]} 24...
Qc6 {[%clk 0:01:41.7]} 25. Qd3 {[%clk 0:01:41]} 25... Qc2 {[%clk 0:01:33.3]} 26.
Qd7 {[%clk 0:01:37.7]} 26... Qc7 {[%clk 0:01:26.6]} 27. Qd3 {[%clk 0:01:34.2]}
27... Re8 {[%clk 0:01:23.4]} 28. Ng5 {[%clk 0:01:09.7]} 28... h6 {[%clk
0:01:15.7]} 29. Ne4 {[%clk 0:01:06]} 29... Qe5 {[%clk 0:01:13.4]} 30. Nc3 {[%clk
0:00:51.9]} 30... Kg7 {[%clk 0:01:10]} 31. Nb5 {[%clk 0:00:41.6]} 31... Re7
{[%clk 0:01:03.6]} 32. Nc3 {[%clk 0:00:31.6]} 32... Re6 {[%clk 0:00:57.1]} 33.
Nb5 {[%clk 0:00:29.9]} 33... a6 {[%clk 0:00:52.9]} 34. Nc3 {[%clk 0:00:28.7]}
34... Rd6 {[%clk 0:00:51.2]} 35. Qc2 {[%clk 0:00:27.6]} 35... Rxd1+ {[%clk
0:00:46.9]} 36. Nxd1 {[%clk 0:00:27.5]} 36... Qe1+ {[%clk 0:00:45.4]} 37. Kh2
{[%clk 0:00:26.8]} 37... Qe5+ {[%clk 0:00:44.9]} 38. Kg1 {[%clk 0:00:25.5]}
38... Nd4 {[%clk 0:00:44.1]} 39. Qd2 {[%clk 0:00:22.6]} 39... Ne6 {[%clk
0:00:42.3]} 40. Ne3 {[%clk 0:00:21.1]} 40... Nf4 {[%clk 0:00:40.6]} 41. Qd1
{[%clk 0:00:13.9]} 41... h5 {[%clk 0:00:38.4]} 42. Qc1 {[%clk 0:00:10.5]} 42...
b5 {[%clk 0:00:37]} 43. Qd1 {[%clk 0:00:08.2]} 43... b4 {[%clk 0:00:34.9]} 44.
Qc1 {[%clk 0:00:07.3]} 44... Ne2+ {[%clk 0:00:33.4]} 0-1

[Event "Live Chess"]
[Site "Chess.com"]
[Date "2024.06.01"]
[Round "-"]
[White "dmitro74"]
[Black "NottheBishopSacrifice"]
[Result "0-1"]
[WhiteElo "1702"]
[BlackElo "2285"]
[TimeControl "300"]
[EndTime "15:28:07 PDT"]
[Termination "NottheBishopSacrifice won on time"]

1. d4 {[%clk 0:04:57.5]} 1... Nf6 {[%clk 0:04:57.2]} 2. c4 {[%clk 0:04:56.2]}
2... e6 {[%clk 0:04:56.6]} 3. Nf3 {[%clk 0:04:54.4]} 3... d5 {[%clk 0:04:56.1]}
4. Nc3 {[%clk 0:04:52.8]} 4... Be7 {[%clk 0:04:55.6]} 5. Bf4 {[%clk 0:04:50.6]}
5... O-O {[%clk 0:04:54.7]} 6. e3 {[%clk 0:04:49.4]} 6... c5 {[%clk 0:04:54.4]}
7. dxc5 {[%clk 0:04:47.1]} 7... Bxc5 {[%clk 0:04:52.6]} 8. cxd5 {[%clk
0:04:44.4]} 8... Nxd5 {[%clk 0:04:51]} 9. Nxd5 {[%clk 0:04:40.7]} 9... exd5
{[%clk 0:04:50.9]} 10. Bd3 {[%clk 0:04:37.1]} 10... Nc6 {[%clk 0:04:49]} 11. O-O
{[%clk 0:04:35.4]} 11... d4 {[%clk 0:04:48.1]} 12. Qc2 {[%clk 0:04:24.1]} 12...
Nb4 {[%clk 0:04:39.3]} 13. Bxh7+ {[%clk 0:04:17.1]} 13... Kh8 {[%clk 0:04:37.7]}
14. Qxc5 {[%clk 0:04:15.5]} 14... Nd5 {[%clk 0:04:32.2]} 15. Qxd4 {[%clk
0:04:06.2]} 15... Nxf4 {[%clk 0:04:28.4]} 16. Qxf4 {[%clk 0:03:40.7]} 16... Kxh7
{[%clk 0:04:27.4]} 17. Qh4+ {[%clk 0:03:37.6]} 17... Qxh4 {[%clk 0:04:24.4]} 18.
Nxh4 {[%clk 0:03:36.3]} 18... Be6 {[%clk 0:04:24]} 19. Rac1 {[%clk 0:03:31.2]}
19... Rfd8 {[%clk 0:04:22.2]} 20. Nf3 {[%clk 0:03:23.4]} 20... Rd3 {[%clk
0:04:17.7]} 21. b3 {[%clk 0:03:19.1]} 21... Rad8 {[%clk 0:04:15.8]} 22. Nd4
{[%clk 0:03:14.7]} 22... Rd2 {[%clk 0:04:13.4]} 23. a4 {[%clk 0:03:00.1]} 23...
Rb2 {[%clk 0:04:09.4]} 24. Rc3 {[%clk 0:02:58.6]} 24... Bd5 {[%clk 0:04:06.5]}
25. h3 {[%clk 0:02:45.5]} 25... a6 {[%clk 0:04:01.6]} 26. Rfc1 {[%clk
0:02:42.8]} 26... Kg6 {[%clk 0:03:59]} 27. R3c2 {[%clk 0:02:41]} 27... Rxc2
{[%clk 0:03:54.9]} 28. Rxc2 {[%clk 0:02:39.7]} 28... Be4 {[%clk 0:03:54.2]} 29.
Rc7 {[%clk 0:02:34.4]} 29... Bd5 {[%clk 0:03:49.6]} 30. f3 {[%clk 0:02:31]}
30... b6 {[%clk 0:03:45.4]} 31. Kf2 {[%clk 0:02:23.6]} 31... f6 {[%clk
0:03:39.4]} 32. Ke2 {[%clk 0:02:20.8]} 32... Bg8 {[%clk 0:03:35]} 33. Rc6 {[%clk
0:01:58]} 33... Rb8 {[%clk 0:03:33.1]} 34. b4 {[%clk 0:01:50.8]} 34... a5 {[%clk
0:03:28.2]} 35. b5 {[%clk 0:01:41.3]} 35... Bd5 {[%clk 0:03:21.6]} 36. Rc7
{[%clk 0:01:36.8]} 36... f5 {[%clk 0:03:16.3]} 37. Kd3 {[%clk 0:01:28]} 37...
Kf6 {[%clk 0:03:12.8]} 38. Rd7 {[%clk 0:01:25.9]} 38... Ba2 {[%clk 0:03:06.6]}
39. Rd6+ {[%clk 0:01:22.1]} 39... Kf7 {[%clk 0:03:03.5]} 40. Nc6 {[%clk
0:01:18.8]} 40... Re8 {[%clk 0:02:59.4]} 41. Nd4 {[%clk 0:01:12.7]} 41... Rb8
{[%clk 0:02:54.7]} 42. Nxf5 {[%clk 0:01:10.1]} 42... Bb1+ {[%clk 0:02:52.7]} 43.
Kd4 {[%clk 0:01:06.3]} 43... Bxf5 {[%clk 0:02:52.1]} 44. e4 {[%clk 0:01:04]}
44... Be6 {[%clk 0:02:50.9]} 45. Kc3 {[%clk 0:00:56.9]} 45... Ke7 {[%clk
0:02:48]} 46. e5 {[%clk 0:00:54.4]} 46... Rc8+ {[%clk 0:02:46.3]} 47. Kb2 {[%clk
0:00:50.1]} 47... Rc4 {[%clk 0:02:43.6]} 48. Rxb6 {[%clk 0:00:47.9]} 48... Rb4+
{[%clk 0:02:42.5]} 49. Kc3 {[%clk 0:00:44]} 49... Rc4+ {[%clk 0:02:41.4]} 50.
Kd3 {[%clk 0:00:40.5]} 50... Rxa4 {[%clk 0:02:40.1]} 51. Rb7+ {[%clk 0:00:35.3]}
51... Kf8 {[%clk 0:02:39.1]} 52. b6 {[%clk 0:00:32.2]} 52... Rb4 {[%clk
0:02:38]} 53. Rb8+ {[%clk 0:00:30.5]} 53... Kf7 {[%clk 0:02:36.2]} 54. g4 {[%clk
0:00:26.3]} 54... a4 {[%clk 0:02:34.7]} 55. Ke3 {[%clk 0:00:23.6]} 55... a3
{[%clk 0:02:33.4]} 56. b7 {[%clk 0:00:19]} 56... a2 {[%clk 0:02:31.5]} 57. Ra8
{[%clk 0:00:17.8]} 57... Rb3+ {[%clk 0:02:28.8]} 58. Kd4 {[%clk 0:00:13.2]}
58... Rb4+ {[%clk 0:02:27.8]} 59. Kc5 {[%clk 0:00:11.3]} 59... Rxb7 {[%clk
0:02:27.4]} 60. f4 {[%clk 0:00:09.1]} 60... Rb1 {[%clk 0:02:24.9]} 61. f5 {[%clk
0:00:07.2]} 61... a1=Q {[%clk 0:02:24.3]} 62. Rxa1 {[%clk 0:00:05.7]} 62... Rxa1
{[%clk 0:02:22]} 63. fxe6+ {[%clk 0:00:03.9]} 63... Kxe6 {[%clk 0:02:21.9]} 64.
Kd4 {[%clk 0:00:02.8]} 64... Ra4+ {[%clk 0:02:21.2]} 0-1

[Event "Live Chess"]
[Site "Chess.com"]
[Date "2024.06.01"]
[Round "-"]
[White "oscalik"]
[Black "OliWally08"]
[Result "1-0"]
[WhiteElo "2312"]
[BlackElo "1264"]
[TimeControl "300"]
[EndTime "15:28:19 PDT"]
[Termination "oscalik won by checkmate"]

1. e4 {[%clk 0:04:55.8]} 1... d5 {[%clk 0:04:58.6]} 2. exd5 {[%clk 0:04:53.2]}
2... Nf6 {[%clk 0:04:57.7]} 3. d4 {[%clk 0:04:51]} 3... Nxd5 {[%clk 0:04:56.3]}
4. c4 {[%clk 0:04:46.5]} 4... Nf6 {[%clk 0:04:55.5]} 5. Nc3 {[%clk 0:04:40.4]}
5... Nc6 {[%clk 0:04:53.2]} 6. d5 {[%clk 0:04:16.7]} 6... Ne5 {[%clk 0:04:51.6]}
7. Qd4 {[%clk 0:04:10.1]} 7... Ng6 {[%clk 0:04:46.1]} 8. Nf3 {[%clk 0:04:00]}
8... e6 {[%clk 0:04:42.7]} 9. Bg5 {[%clk 0:03:50.1]} 9... Be7 {[%clk 0:04:30]}
10. h4 {[%clk 0:03:39.7]} 10... h6 {[%clk 0:04:14]} 11. Be3 {[%clk 0:03:18.3]}
11... b6 {[%clk 0:03:28.8]} 12. O-O-O {[%clk 0:03:12.3]} 12... Bc5 {[%clk
0:03:27.3]} 13. Qd2 {[%clk 0:02:57.7]} 13... Bxe3 {[%clk 0:03:20.8]} 14. Qxe3
{[%clk 0:02:56.3]} 14... O-O {[%clk 0:03:19.4]} 15. dxe6 {[%clk 0:02:53.4]}
15... Bxe6 {[%clk 0:03:11.5]} 16. Rxd8 {[%clk 0:02:50.3]} 16... Rfxd8 {[%clk
0:03:02.2]} 17. h5 {[%clk 0:02:45.4]} 17... Ne7 {[%clk 0:02:59.7]} 18. Ne5
{[%clk 0:02:36.8]} 18... Nf5 {[%clk 0:02:50.6]} 19. Qe1 {[%clk 0:02:24.2]} 19...
c5 {[%clk 0:02:35.9]} 20. Nb5 {[%clk 0:02:07.2]} 20... a6 {[%clk 0:02:30.9]} 21.
Nc7 {[%clk 0:02:05.6]} 21... Ra7 {[%clk 0:02:29.1]} 22. Nxe6 {[%clk 0:02:03.9]}
22... fxe6 {[%clk 0:02:28.7]} 23. Nc6 {[%clk 0:02:01]} 23... Rad7 {[%clk
0:02:22.7]} 24. Qxe6+ {[%clk 0:01:51.8]} 24... Kh8 {[%clk 0:02:10.8]} 25. Nxd8
{[%clk 0:01:50.2]} 25... Rxd8 {[%clk 0:02:10.7]} 26. Qxf5 {[%clk 0:01:48.4]}
26... Rd4 {[%clk 0:02:08.1]} 27. Bd3 {[%clk 0:01:43.5]} 27... Rg4 {[%clk
0:01:57.7]} 28. Re1 {[%clk 0:01:41.1]} 28... Kg8 {[%clk 0:01:44.9]} 29. Re8+
{[%clk 0:01:22.8]} 29... Nxe8 {[%clk 0:01:39.1]} 30. Qxg4 {[%clk 0:01:19.8]}
30... Nf6 {[%clk 0:01:39]} 31. Qe6+ {[%clk 0:01:17.3]} 31... Kf8 {[%clk
0:01:37.9]} 32. Bg6 {[%clk 0:01:15.8]} 32... Nd5 {[%clk 0:01:31.6]} 33. Qf7#
{[%clk 0:01:14.5]} 1-0

[Event "Live Chess"]
[Site "Chess.com"]
[Date "2024.06.01"]
[Round "-"]
[White "Plato_77"]
[Black "gmnorfolk"]
[Result "0-1"]
[WhiteElo "1321"]
[BlackElo "2111"]
[TimeControl "300"]
[EndTime "15:28:23 PDT"]
[Termination "gmnorfolk won by resignation"]

1. d4 {[%clk 0:04:53.5]} 1... Nf6 {[%clk 0:04:56.4]} 2. Bf4 {[%clk 0:04:51.9]}
2... d5 {[%clk 0:04:53.3]} 3. e3 {[%clk 0:04:50.5]} 3... c5 {[%clk 0:04:50.3]}
4. c3 {[%clk 0:04:48.9]} 4... Nc6 {[%clk 0:04:50.2]} 5. Nf3 {[%clk 0:04:46.4]}
5... Bg4 {[%clk 0:04:47.9]} 6. Nbd2 {[%clk 0:04:44.7]} 6... e6 {[%clk 0:04:47]}
7. dxc5 {[%clk 0:04:38.9]} 7... Bxc5 {[%clk 0:04:45.1]} 8. Nb3 {[%clk
0:04:38.1]} 8... Bd6 {[%clk 0:04:43.9]} 9. Bxd6 {[%clk 0:04:37]} 9... Qxd6
{[%clk 0:04:43.6]} 10. Nbd4 {[%clk 0:04:36.2]} 10... O-O {[%clk 0:04:41.2]} 11.
h3 {[%clk 0:04:33.9]} 11... Bh5 {[%clk 0:04:39.5]} 12. Be2 {[%clk 0:04:29.7]}
12... Rac8 {[%clk 0:04:36.5]} 13. O-O {[%clk 0:04:26.9]} 13... Rfd8 {[%clk
0:04:34]} 14. g4 {[%clk 0:04:20.2]} 14... Bg6 {[%clk 0:04:32.4]} 15. Ne5 {[%clk
0:04:19.4]} 0-1

[Event "Live Chess"]
[Site "Chess.com"]
[Date "2024.06.01"]
[Round "-"]
[White "Dhaydon19"]
[Black "IgorSchukin"]
[Result "1-0"]
[WhiteElo "2679"]
[BlackElo "1709"]
[TimeControl "300"]
[EndTime "15:29:32 PDT"]
[Termination "Dhaydon19 won on time"]

1. d4 {[%clk 0:04:58]} 1... d5 {[%clk 0:04:57.8]} 2. Nf3 {[%clk 0:04:57.7]} 2...
Nf6 {[%clk 0:04:56.6]} 3. g3 {[%clk 0:04:55.3]} 3... g6 {[%clk 0:04:56.1]} 4.
Bg2 {[%clk 0:04:53.1]} 4... Bg7 {[%clk 0:04:55.6]} 5. O-O {[%clk 0:04:50.9]}
5... O-O {[%clk 0:04:55.1]} 6. c3 {[%clk 0:04:50.6]} 6... Bg4 {[%clk 0:04:52.3]}
7. Nbd2 {[%clk 0:04:50.3]} 7... Nbd7 {[%clk 0:04:50.7]} 8. Re1 {[%clk
0:04:49.9]} 8... Re8 {[%clk 0:04:47]} 9. e4 {[%clk 0:04:48.4]} 9... Nxe4 {[%clk
0:04:44.1]} 10. Nxe4 {[%clk 0:04:48.2]} 10... dxe4 {[%clk 0:04:43.1]} 11. Rxe4
{[%clk 0:04:47.9]} 11... h5 {[%clk 0:04:34.3]} 12. Qb3 {[%clk 0:04:44.5]} 12...
b6 {[%clk 0:04:30]} 13. Ng5 {[%clk 0:04:32.7]} 13... e6 {[%clk 0:04:20.3]} 14.
Re1 {[%clk 0:04:28]} 14... Rc8 {[%clk 0:04:16.4]} 15. Bf4 {[%clk 0:04:24.7]}
15... c5 {[%clk 0:04:09.7]} 16. d5 {[%clk 0:04:19.9]} 16... c4 {[%clk
0:04:04.8]} 17. Qb5 {[%clk 0:04:14]} 17... Rc5 {[%clk 0:03:55.4]} 18. Qa4 {[%clk
0:04:11.4]} 18... exd5 {[%clk 0:03:47.1]} 19. Qxa7 {[%clk 0:04:06.6]} 19... f6
{[%clk 0:03:36]} 20. Nf3 {[%clk 0:04:03.1]} 20... Bxf3 {[%clk 0:03:27.7]} 21.
Bxf3 {[%clk 0:04:01.6]} 21... Ne5 {[%clk 0:03:23.6]} 22. Bxe5 {[%clk 0:03:53.2]}
22... fxe5 {[%clk 0:03:21.2]} 23. Rad1 {[%clk 0:03:52.8]} 23... Ra5 {[%clk
0:02:50.1]} 24. Qb7 {[%clk 0:03:49.7]} 24... Rxa2 {[%clk 0:02:42.5]} 25. Bxd5+
{[%clk 0:03:47.6]} 25... Kh8 {[%clk 0:02:39.7]} 26. Bxc4 {[%clk 0:03:47]} 26...
Qa8 {[%clk 0:02:31]} 27. Qxa8 {[%clk 0:03:44.8]} 27... Raxa8 {[%clk 0:02:29.2]}
28. Rd6 {[%clk 0:03:44.5]} 28... Rab8 {[%clk 0:02:21.8]} 29. Rxg6 {[%clk
0:03:42.4]} 29... b5 {[%clk 0:02:15.6]} 30. Bd3 {[%clk 0:03:38.8]} 30... b4
{[%clk 0:02:11.4]} 31. Rg5 {[%clk 0:03:31.3]} 31... bxc3 {[%clk 0:02:04.4]} 32.
bxc3 {[%clk 0:03:29.8]} 32... Rec8 {[%clk 0:01:51.2]} 33. Rxh5+ {[%clk
0:03:26.1]} 33... Kg8 {[%clk 0:01:49.4]} 34. c4 {[%clk 0:03:23.6]} 34... Rb3
{[%clk 0:01:40.5]} 35. Be4 {[%clk 0:03:22.3]} 35... Kf7 {[%clk 0:01:32.3]} 36.
Rf5+ {[%clk 0:03:17.5]} 36... Ke6 {[%clk 0:01:28.5]} 37. g4 {[%clk 0:03:13.9]}
37... Rc3 {[%clk 0:01:16.6]} 38. Bd5+ {[%clk 0:03:11.7]} 38... Kd6 {[%clk
0:01:13.1]} 39. Rf7 {[%clk 0:03:10.7]} 39... Bh8 {[%clk 0:01:08.3]} 40. g5
{[%clk 0:03:09.6]} 40... Rh3 {[%clk 0:00:34.2]} 41. Re3 {[%clk 0:03:02.7]} 41...
Rxe3 {[%clk 0:00:22.9]} 42. fxe3 {[%clk 0:03:01.7]} 42... e4 {[%clk 0:00:19.6]}
43. h4 {[%clk 0:03:00]} 43... Rg8 {[%clk 0:00:13.3]} 44. Kg2 {[%clk 0:02:56.6]}
44... Be5 {[%clk 0:00:09.9]} 45. Kh3 {[%clk 0:02:54.7]} 45... Rh8 {[%clk
0:00:08.9]} 46. Kg4 {[%clk 0:02:53.9]} 46... Bc3 {[%clk 0:00:04.3]} 47. h5
{[%clk 0:02:53.1]} 47... Bd2 {[%clk 0:00:03.2]} 48. Kf4 {[%clk 0:02:50.7]} 1-0

[Event "Live Chess"]
[Site "Chess.com"]
[Date "2024.06.01"]
[Round "-"]
[White "JanMur7"]
[Black "NeilDruggan73"]
[Result "1-0"]
[WhiteElo "2298"]
[BlackElo "1745"]
[TimeControl "300"]
[EndTime "15:29:38 PDT"]
[Termination "JanMur7 won by checkmate"]

1. c4 {[%clk 0:04:58.1]} 1... Nf6 {[%clk 0:04:58.1]} 2. Nc3 {[%clk 0:04:57.7]}
2... g6 {[%clk 0:04:57.3]} 3. d4 {[%clk 0:04:57]} 3... Bg7 {[%clk 0:04:56.8]} 4.
e4 {[%clk 0:04:56.5]} 4... d6 {[%clk 0:04:56.1]} 5. Be2 {[%clk 0:04:56.1]} 5...
O-O {[%clk 0:04:54.6]} 6. Bg5 {[%clk 0:04:55.7]} 6... e5 {[%clk 0:04:51.3]} 7.
dxe5 {[%clk 0:04:42.3]} 7... dxe5 {[%clk 0:04:47.7]} 8. Qxd8 {[%clk 0:04:42.2]}
8... Rxd8 {[%clk 0:04:45.9]} 9. Nd5 {[%clk 0:04:41.8]} 9... Rd6 {[%clk
0:04:25.8]} 10. Nxc7 {[%clk 0:04:38.6]} 10... Nxe4 {[%clk 0:04:24.5]} 11. Be3
{[%clk 0:04:35.7]} 11... f5 {[%clk 0:04:13.7]} 12. Nxa8 {[%clk 0:04:28.4]} 12...
f4 {[%clk 0:04:12.7]} 13. Bf3 {[%clk 0:04:13.3]} 13... fxe3 {[%clk 0:04:03.5]}
14. Bxe4 {[%clk 0:04:06]} 14... exf2+ {[%clk 0:04:02.3]} 15. Kxf2 {[%clk
0:04:04.2]} 15... Rf6+ {[%clk 0:03:57.2]} 16. Nf3 {[%clk 0:04:01.5]} 16... Nd7
{[%clk 0:03:55.1]} 17. Nc7 {[%clk 0:03:57.9]} 17... Nc5 {[%clk 0:03:52.9]} 18.
Rhe1 {[%clk 0:03:55.8]} 18... g5 {[%clk 0:03:37.8]} 19. Nd5 {[%clk 0:03:51.8]}
19... Rf7 {[%clk 0:03:31.8]} 20. Kg3 {[%clk 0:03:43.4]} 20... h6 {[%clk
0:03:05.4]} 21. b4 {[%clk 0:03:35.8]} 21... Ne6 {[%clk 0:02:59.2]} 22. Bg6
{[%clk 0:03:31.6]} 22... Rf8 {[%clk 0:02:48.7]} 23. Nxe5 {[%clk 0:03:24.5]}
23... h5 {[%clk 0:02:39]} 24. Ne7+ {[%clk 0:03:18.7]} 24... Kh8 {[%clk 0:02:36]}
25. Nxc8 {[%clk 0:03:14.6]} 25... h4+ {[%clk 0:02:30.9]} 26. Kg4 {[%clk
0:03:05]} 26... Rf4+ {[%clk 0:02:26.9]} 27. Kh5 {[%clk 0:03:04.1]} 27... h3
{[%clk 0:02:02.1]} 28. g3 {[%clk 0:02:51.4]} 28... Rf2 {[%clk 0:01:20.5]} 29.
Nf7+ {[%clk 0:02:44.7]} 29... Kg8 {[%clk 0:01:15.4]} 30. Rxe6 {[%clk 0:02:43.5]}
30... Rxh2 {[%clk 0:01:10.8]} 31. Ne7+ {[%clk 0:02:34.2]} 31... Kf8 {[%clk
0:01:07.9]} 32. Rf1 {[%clk 0:02:33.7]} 32... Rg2 {[%clk 0:01:02.9]} 33. Nd6+
{[%clk 0:02:28.4]} 33... Bf6 {[%clk 0:00:58.3]} 34. Rfxf6+ {[%clk 0:02:25.6]}
34... Kg7 {[%clk 0:00:57.6]} 35. Ne8+ {[%clk 0:02:18.9]} 35... Kh8 {[%clk
0:00:55.9]} 36. Rf8# {[%clk 0:02:18.8]} 1-0